[Event "Rapid Tournament (RAP)"]
[Site "Biel, Switzerland"]
[Date "2026.07.12"]
[Round "1.41"]
[White "Tkhoruk, Roman"]
[Black "Creux, Francois"]
[Result "1/2-1/2"]
[TimeControl "15 + 5"]
[WhiteTitle "-"]
[BlackTitle "-"]
[WhiteFideId "34161589"]
[BlackFideId "1357743"]
[WhiteElo "2076"]
[BlackElo "1668"]

1. e4 {[%clk 00:15:07]} {[%emt 00:00:03]} c5 {[%clk 00:15:08]} {[%emt
00:00:02]} 2. Nf3 {[%clk 00:15:09]} {[%emt 00:00:02]} d6 {[%clk 00:15:11]}
{[%emt 00:00:02]} 3. Bb5+ {[%clk 00:15:13]} {[%emt 00:00:02]} Bd7 {[%clk
00:15:14]} {[%emt 00:00:02]} 4. a4 {[%clk 00:15:13]} {[%emt 00:00:05]} a6
{[%clk 00:15:07]} {[%emt 00:00:12]} 5. Bxd7+ {[%clk 00:15:11]} {[%emt
00:00:06]} Qxd7 {[%clk 00:15:01]} {[%emt 00:00:12]} 6. O-O {[%clk 00:15:11]}
{[%emt 00:00:04]} Nc6 {[%clk 00:15:05]} {[%emt 00:00:02]} 7. d4 {[%clk
00:15:13]} {[%emt 00:00:03]} cxd4 {[%clk 00:15:04]} {[%emt 00:00:06]} 8. Nxd4
{[%clk 00:15:16]} {[%emt 00:00:02]} Nf6 {[%clk 00:15:06]} {[%emt 00:00:03]} 9.
Nc3 {[%clk 00:15:01]} {[%emt 00:00:19]} g6 {[%clk 00:15:08]} {[%emt 00:00:03]}
10. f3 {[%clk 00:14:49]} {[%emt 00:00:17]} Bg7 {[%clk 00:15:10]} {[%emt
00:00:04]} 11. Be3 {[%clk 00:14:47]} {[%emt 00:00:07]} O-O {[%clk 00:15:08]}
{[%emt 00:00:07]} 12. Nd5 {[%clk 00:14:31]} {[%emt 00:00:21]} Nxd5 {[%clk
00:14:52]} {[%emt 00:00:21]} 13. exd5 {[%clk 00:14:32]} {[%emt 00:00:04]} Ne5
{[%clk 00:14:40]} {[%emt 00:00:16]} 14. b3 {[%clk 00:14:24]} {[%emt 00:00:13]}
Rac8 {[%clk 00:14:22]} {[%emt 00:00:24]} 15. h3 {[%clk 00:14:26]} {[%emt
00:00:03]} Qc7 {[%clk 00:14:20]} {[%emt 00:00:07]} 16. c4 {[%clk 00:14:14]}
{[%emt 00:00:17]} Nd7 {[%clk 00:14:17]} {[%emt 00:00:08]} 17. Rc1 {[%clk
00:14:15]} {[%emt 00:00:03]} Nc5 {[%clk 00:13:41]} {[%emt 00:00:42]} 18. Qc2
{[%clk 00:10:40]} {[%emt 00:03:40]} Qd8 {[%clk 00:12:40]} {[%emt 00:01:06]} 19.
f4 {[%clk 00:09:53]} {[%emt 00:00:52]} Nd7 {[%clk 00:11:37]} {[%emt 00:01:07]}
20. Nf3 {[%clk 00:07:49]} {[%emt 00:02:09]} Nf6 {[%clk 00:11:29]} {[%emt
00:00:13]} 21. f5 {[%clk 00:07:09]} {[%emt 00:00:45]} Nxd5 {[%clk 00:11:23]}
{[%emt 00:00:11]} 22. Bd2 {[%clk 00:06:31]} {[%emt 00:00:44]} Qb6+ {[%clk
00:10:56]} {[%emt 00:00:32]} 23. Kh1 {[%clk 00:06:24]} {[%emt 00:00:12]} Ne3
{[%clk 00:10:45]} {[%emt 00:00:16]} 24. Bxe3 {[%clk 00:06:27]} {[%emt
00:00:03]} Qxe3 {[%clk 00:10:48]} 25. fxg6 {[%clk 00:06:25]} {[%emt 00:00:07]}
hxg6 {[%clk 00:09:58]} {[%emt 00:00:54]} 26. Rce1 {[%clk 00:06:15]} {[%emt
00:00:16]} Qc5 {[%clk 00:08:41]} {[%emt 00:01:22]} 27. Qe4 {[%clk 00:02:14]}
{[%emt 00:04:06]} Rc7 {[%clk 00:07:46]} {[%emt 00:01:00]} 28. Rd1 {[%clk
00:02:17]} {[%emt 00:00:02]} Qc6 {[%clk 00:06:53]} {[%emt 00:00:58]} 29. Qe3
{[%clk 00:02:10]} {[%emt 00:00:12]} Qc5 {[%clk 00:06:27]} {[%emt 00:00:31]} 30.
Qe4 {[%clk 00:02:14]} {[%emt 00:00:02]} Qb4 {[%clk 00:06:11]} {[%emt 00:00:21]}
31. Rd3 {[%clk 00:02:12]} {[%emt 00:00:06]} b5 {[%clk 00:05:56]} {[%emt
00:00:20]} 32. axb5 {[%clk 00:01:52]} {[%emt 00:00:25]} axb5 {[%clk 00:06:00]}
{[%emt 00:00:02]} 33. Ng5 {[%clk 00:01:36]} {[%emt 00:00:20]} Bf6 {[%clk
00:05:23]} {[%emt 00:00:42]} 34. Nf3 {[%clk 00:00:26]} {[%emt 00:01:15]} bxc4
{[%clk 00:05:18]} {[%emt 00:00:10]} 35. Nd2 {[%clk 00:00:29]} {[%emt 00:00:02]}
Bc3 {[%clk 00:04:33]} {[%emt 00:00:50]} 36. Nxc4 {[%clk 00:00:16]} {[%emt
00:00:18]} Qxb3 {[%clk 00:04:05]} {[%emt 00:00:33]} 37. Ne3 {[%clk 00:00:20]}
{[%emt 00:00:01]} Qb4 {[%clk 00:03:53]} {[%emt 00:00:17]} 38. Qf3 {[%clk
00:00:14]} {[%emt 00:00:10]} Bf6 {[%clk 00:03:46]} {[%emt 00:00:12]} 39. Nd5
{[%clk 00:00:18]} {[%emt 00:00:02]} Qa5 {[%clk 00:03:22]} {[%emt 00:00:30]} 40.
Nxf6+ {[%clk 00:00:07]} {[%emt 00:00:15]} exf6 {[%clk 00:03:19]} {[%emt
00:00:08]} 41. Qxf6 {[%clk 00:00:11]} {[%emt 00:00:01]} Qe5 {[%clk 00:03:11]}
{[%emt 00:00:13]} 42. Qxd6 {[%clk 00:00:09]} {[%emt 00:00:06]} Qxd6 {[%clk
00:02:49]} {[%emt 00:00:28]} 43. Rxd6 {[%clk 00:00:13]} {[%emt 00:00:01]} Rfc8
{[%clk 00:02:32]} {[%emt 00:00:21]} 44. Rdf6 {[%clk 00:00:14]} {[%emt
00:00:05]} Kg7 {[%clk 00:02:33]} {[%emt 00:00:05]} 45. g3 {[%clk 00:00:13]}
{[%emt 00:00:05]} Rb8 {[%clk 00:02:31]} {[%emt 00:00:07]} 46. h4 {[%clk
00:00:13]} {[%emt 00:00:06]} Rb2 {[%clk 00:02:21]} {[%emt 00:00:14]} 47. Kg1
{[%clk 00:00:14]} {[%emt 00:00:04]} Re7 {[%clk 00:02:19]} {[%emt 00:00:07]} 48.
R6f3 {[%clk 00:00:06]} {[%emt 00:00:13]} Rbe2 {[%clk 00:02:21]} {[%emt
00:00:03]} 49. R1f2 {[%clk 00:00:07]} {[%emt 00:00:04]} Rxf2 {[%clk 00:02:18]}
{[%emt 00:00:08]} 50. Rxf2 {[%emt 00:00:04]} f5 {[%clk 00:02:20]} 51. Kg2
{[%clk 00:00:15]} {[%emt 00:00:01]} Re3 {[%clk 00:02:22]} {[%emt 00:00:03]} 52.
Rf4 {[%clk 00:00:13]} {[%emt 00:00:07]} Kh6 {[%clk 00:02:21]} {[%emt 00:00:05]}
53. Ra4 {[%clk 00:00:14]} {[%emt 00:00:06]} Rb3 {[%clk 00:02:16]} {[%emt
00:00:10]} 54. Kh3 {[%clk 00:00:15]} {[%emt 00:00:03]} Rc3 {[%clk 00:02:12]}
{[%emt 00:00:09]} 55. Rf4 {[%clk 00:00:13]} {[%emt 00:00:08]} Kh5 {[%clk
00:02:03]} {[%emt 00:00:14]} 56. Rd4 {[%clk 00:00:13]} {[%emt 00:00:04]} Kh6
{[%clk 00:02:03]} {[%emt 00:00:05]} 57. Kg2 {[%clk 00:00:09]} {[%emt 00:00:09]}
Kh5 {[%clk 00:01:58]} {[%emt 00:00:09]} 58. Rd7 {[%clk 00:00:12]} {[%emt
00:00:03]} Kh6 {[%clk 00:02:01]} {[%emt 00:00:02]} 59. Rf7 {[%clk 00:00:14]}
{[%emt 00:00:04]} Rd3 {[%clk 00:01:59]} {[%emt 00:00:07]} 60. Kh3 {[%clk
00:00:16]} {[%emt 00:00:02]} Re3 {[%clk 00:02:01]} {[%emt 00:00:03]} 61. Rf8
{[%clk 00:00:18]} {[%emt 00:00:03]} Kg7 {[%clk 00:02:03]} {[%emt 00:00:03]} 62.
Ra8 {[%clk 00:00:21]} {[%emt 00:00:02]} Rc3 {[%clk 00:02:03]} {[%emt 00:00:06]}
63. Ra6 {[%clk 00:00:21]} {[%emt 00:00:04]} Rd3 {[%clk 00:02:01]} {[%emt
00:00:07]} 64. Kg2 {[%clk 00:00:23]} {[%emt 00:00:03]} Rb3 {[%clk 00:02:05]}
{[%emt 00:00:02]} 65. Kf2 {[%clk 00:00:26]} {[%emt 00:00:02]} Kh6 {[%clk
00:02:05]} {[%emt 00:00:05]} 66. Rf6 {[%clk 00:00:27]} {[%emt 00:00:04]} Kh5
{[%clk 00:02:05]} {[%emt 00:00:05]} 67. Re6 {[%clk 00:00:26]} {[%emt 00:00:07]}
Rc3 {[%clk 00:02:03]} {[%emt 00:00:07]} 68. Rd6 {[%clk 00:00:24]} {[%emt
00:00:07]} Rb3 {[%clk 00:02:05]} {[%emt 00:00:03]} 69. Kg2 {[%clk 00:00:25]}
{[%emt 00:00:03]} Rc3 {[%clk 00:02:05]} {[%emt 00:00:05]} 70. Rf6 {[%clk
00:00:25]} {[%emt 00:00:05]} Rb3 {[%clk 00:02:07]} {[%emt 00:00:03]} 71. Kh3
{[%clk 00:00:27]} {[%emt 00:00:03]} Rc3 {[%clk 00:02:08]} {[%emt 00:00:04]} 72.
Rf8 {[%clk 00:00:30]} {[%emt 00:00:03]} Kh6 {[%clk 00:02:09]} {[%emt 00:00:02]}
73. Rf7 {[%clk 00:00:32]} {[%emt 00:00:03]} Rd3 {[%clk 00:02:12]} {[%emt
00:00:03]} 74. Re7 {[%clk 00:00:35]} {[%emt 00:00:03]} Rb3 {[%clk 00:02:13]}
{[%emt 00:00:03]} 75. Ra7 {[%clk 00:00:38]} {[%emt 00:00:02]} Rc3 {[%clk
00:02:17]} {[%emt 00:00:02]} 76. Rb7 {[%clk 00:00:41]} {[%emt 00:00:01]} Rd3
{[%clk 00:02:20]} {[%emt 00:00:02]} 77. Rc7 {[%clk 00:00:44]} {[%emt 00:00:02]}
Re3 {[%clk 00:02:24]} {[%emt 00:00:02]} 78. Rd7 {[%clk 00:00:48]} {[%emt
00:00:01]} Rc3 {[%emt 00:00:17]} 1/2-1/2

[Event "Rapid Tournament (RAP)"]
[Site "Biel, Switzerland"]
[Date "2026.07.12"]
[Round "1.42"]
[White "Knuesel, Jolan"]
[Black "Hornung, Hans"]
[Result "1-0"]
[TimeControl "15 + 5"]
[WhiteTitle "-"]
[BlackTitle "-"]
[WhiteFideId "1364529"]
[BlackFideId "4615140"]
[WhiteElo "1651"]
[BlackElo "2040"]

1. d4 {[%clk 00:15:09]} Nf6 {[%clk 00:15:05]} {[%emt 00:00:05]} 2. Bf4 {[%clk
00:15:12]} {[%emt 00:00:03]} b6 {[%clk 00:15:07]} {[%emt 00:00:03]} 3. e3
{[%clk 00:15:12]} {[%emt 00:00:05]} Bb7 {[%clk 00:15:09]} {[%emt 00:00:02]} 4.
Nf3 {[%clk 00:15:14]} {[%emt 00:00:03]} g6 {[%clk 00:15:12]} {[%emt 00:00:02]}
5. Be2 {[%clk 00:15:13]} {[%emt 00:00:07]} Bg7 {[%clk 00:15:12]} {[%emt
00:00:04]} 6. O-O {[%clk 00:15:14]} {[%emt 00:00:04]} O-O {[%clk 00:15:07]}
{[%emt 00:00:10]} 7. h3 {[%clk 00:15:06]} {[%emt 00:00:13]} d6 {[%clk
00:15:02]} {[%emt 00:00:09]} 8. c3 {[%clk 00:14:39]} {[%emt 00:00:34]} e6
{[%clk 00:13:55]} {[%emt 00:01:11]} 9. Nbd2 {[%clk 00:13:52]} {[%emt 00:00:52]}
Qe7 {[%clk 00:13:38]} {[%emt 00:00:21]} 10. a4 {[%clk 00:13:08]} {[%emt
00:00:50]} a5 {[%clk 00:13:36]} {[%emt 00:00:06]} 11. b4 {[%clk 00:12:17]}
{[%emt 00:00:58]} Nd5 {[%clk 00:13:07]} {[%emt 00:00:33]} 12. Qb3 {[%clk
00:11:26]} {[%emt 00:00:57]} Nxf4 {[%clk 00:13:00]} {[%emt 00:00:11]} 13. exf4
{[%clk 00:11:28]} {[%emt 00:00:03]} Nd7 {[%clk 00:12:24]} {[%emt 00:00:40]} 14.
g3 {[%clk 00:10:33]} {[%emt 00:01:01]} Nf6 {[%clk 00:11:58]} {[%emt 00:00:31]}
15. bxa5 {[%clk 00:10:06]} {[%emt 00:00:32]} Rxa5 {[%clk 00:11:54]} {[%emt
00:00:09]} 16. Nc4 {[%clk 00:09:46]} {[%emt 00:00:26]} Rh5 {[%clk 00:09:55]}
{[%emt 00:02:02]} 17. Ng5 {[%clk 00:08:52]} {[%emt 00:01:01]} h6 {[%clk
00:09:21]} {[%emt 00:00:39]} 18. Bxh5 {[%clk 00:07:54]} {[%emt 00:01:02]} Nxh5
{[%clk 00:08:49]} {[%emt 00:00:36]} 19. Nxf7 {[%clk 00:05:35]} {[%emt
00:02:25]} Rxf7 {[%clk 00:08:27]} {[%emt 00:00:26]} 20. a5 {[%clk 00:05:08]}
{[%emt 00:00:33]} Bd5 {[%clk 00:07:48]} {[%emt 00:00:43]} 21. axb6 {[%clk
00:04:39]} {[%emt 00:00:35]} cxb6 {[%clk 00:07:33]} {[%emt 00:00:20]} 22. Qb5
{[%clk 00:04:13]} {[%emt 00:00:31]} Nxf4 {[%clk 00:06:12]} {[%emt 00:01:26]} 23.
Ne3 {[%clk 00:03:09]} {[%emt 00:01:10]} Nxh3+ {[%clk 00:04:31]} {[%emt
00:01:45]} 24. Kh2 {[%clk 00:03:12]} {[%emt 00:00:03]} Nf4 {[%clk 00:03:56]}
{[%emt 00:00:39]} 25. Qxb6 {[%clk 00:02:17]} {[%emt 00:01:01]} Qg5 {[%clk
00:02:55]} {[%emt 00:01:06]} 26. Nxd5 {[%clk 00:01:10]} {[%emt 00:01:12]} Qh5+
{[%clk 00:02:21]} {[%emt 00:00:39]} 27. Kg1 {[%clk 00:01:11]} {[%emt 00:00:04]}
Ne2+ {[%clk 00:02:03]} {[%emt 00:00:22]} 28. Kg2 {[%clk 00:01:10]} {[%emt
00:00:06]} Qf3+ {[%clk 00:01:57]} {[%emt 00:00:11]} 29. Kh2 {[%clk 00:00:48]}
{[%emt 00:00:28]} Qxd5 {[%clk 00:01:56]} {[%emt 00:00:06]} 30. Qd8+ {[%clk
00:00:39]} {[%emt 00:00:14]} Kh7 {[%clk 00:01:46]} {[%emt 00:00:13]} 31. Ra5
{[%clk 00:00:21]} {[%emt 00:00:24]} Qf3 {[%clk 00:01:33]} {[%emt 00:00:17]} 32.
Qh4 {[%clk 00:00:25]} {[%emt 00:00:03]} Nxc3 {[%clk 00:01:29]} {[%emt
00:00:09]} 33. Ra3 {[%clk 00:00:24]} {[%emt 00:00:05]} Rf5 {[%clk 00:01:16]}
{[%emt 00:00:17]} 34. g4 {[%clk 00:00:17]} {[%emt 00:00:14]} Rf4 {[%clk
00:01:06]} {[%emt 00:00:15]} 35. Qg3 {[%clk 00:00:20]} {[%emt 00:00:02]} Bxd4
{[%clk 00:00:54]} {[%emt 00:00:16]} 36. Qxf3 {[%clk 00:00:15]} {[%emt
00:00:11]} Rxf3 {[%clk 00:00:57]} {[%emt 00:00:02]} 37. Kg2 {[%clk 00:00:18]}
{[%emt 00:00:02]} Rd3 {[%clk 00:00:55]} {[%emt 00:00:06]} 38. Ra7+ {[%clk
00:00:09]} {[%emt 00:00:15]} Bg7 {[%clk 00:00:33]} {[%emt 00:00:26]} 39. Ra3
{[%clk 00:00:08]} {[%emt 00:00:07]} Rd5 {[%clk 00:00:31]} {[%emt 00:00:07]} 40.
Rc1 {[%clk 00:00:08]} {[%emt 00:00:05]} Rg5 {[%clk 00:00:19]} {[%emt 00:00:16]}
41. f3 {[%clk 00:00:12]} {[%emt 00:00:02]} Rc5 {[%clk 00:00:23]} {[%emt
00:00:01]} 42. Ra7 {[%clk 00:00:09]} {[%emt 00:00:08]} g5 {[%clk 00:00:14]}
{[%emt 00:00:14]} 43. Ra6 {[%clk 00:00:09]} {[%emt 00:00:05]} Be5 {[%clk
00:00:14]} {[%emt 00:00:04]} 44. Ra7+ {[%clk 00:00:07]} {[%emt 00:00:08]} Kg6
{[%clk 00:00:18]} {[%emt 00:00:01]} 45. Ra6 {[%clk 00:00:10]} {[%emt 00:00:02]}
Rb5 {[%clk 00:00:15]} {[%emt 00:00:07]} 46. Ra3 {[%clk 00:00:14]} {[%emt
00:00:02]} Rb2+ {[%clk 00:00:18]} {[%emt 00:00:02]} 47. Kf1 {[%clk 00:00:17]}
{[%emt 00:00:02]} Nd5 {[%clk 00:00:17]} {[%emt 00:00:06]} 48. Rd3 {[%clk
00:00:09]} {[%emt 00:00:14]} Bf4 {[%clk 00:00:12]} {[%emt 00:00:08]} 49. Ra1
{[%clk 00:00:11]} {[%emt 00:00:04]} Ne3+ {[%clk 00:00:11]} {[%emt 00:00:06]} 50.
Kg1 {[%clk 00:00:09]} {[%emt 00:00:08]} 1-0

[Event "Rapid Tournament (RAP)"]
[Site "Biel, Switzerland"]
[Date "2026.07.12"]
[Round "1.43"]
[White "De Gregorio, Alexis"]
[Black "Amsellem, Daniel"]
[Result "1/2-1/2"]
[TimeControl "15 + 5"]
[WhiteTitle "-"]
[BlackTitle "-"]
[WhiteFideId "1310054"]
[BlackFideId "1363522"]
[WhiteElo "2030"]
[BlackElo "1650"]

1. e4 {[%clk 00:15:05]} {[%emt 00:00:04]} e5 {[%clk 00:15:08]} {[%emt
00:00:02]} 2. Nf3 {[%clk 00:15:09]} {[%emt 00:00:02]} Nf6 {[%clk 00:15:11]}
{[%emt 00:00:02]} 3. Nxe5 {[%clk 00:15:11]} {[%emt 00:00:03]} d6 {[%clk
00:15:14]} {[%emt 00:00:02]} 4. Nf3 {[%clk 00:15:15]} {[%emt 00:00:02]} Nxe4
{[%clk 00:15:16]} {[%emt 00:00:03]} 5. Nc3 {[%clk 00:15:00]} {[%emt 00:00:19]}
Nf6 {[%clk 00:15:15]} {[%emt 00:00:06]} 6. d4 {[%clk 00:14:47]} {[%emt
00:00:18]} Be7 {[%clk 00:15:16]} {[%emt 00:00:04]} 7. Bd3 {[%clk 00:14:44]}
{[%emt 00:00:08]} O-O {[%clk 00:15:12]} {[%emt 00:00:09]} 8. O-O {[%clk
00:14:45]} {[%emt 00:00:03]} Nbd7 {[%clk 00:15:13]} {[%emt 00:00:04]} 9. Bf4
{[%clk 00:14:02]} {[%emt 00:00:48]} Re8 {[%clk 00:15:08]} {[%emt 00:00:10]} 10.
h3 {[%clk 00:13:31]} {[%emt 00:00:36]} Nf8 {[%clk 00:15:10]} {[%emt 00:00:03]}
11. Re1 {[%clk 00:13:27]} {[%emt 00:00:10]} c6 {[%clk 00:15:04]} {[%emt
00:00:10]} 12. Qd2 {[%clk 00:13:00]} {[%emt 00:00:33]} Be6 {[%clk 00:12:59]}
{[%emt 00:02:10]} 13. Ng5 {[%clk 00:11:38]} {[%emt 00:01:27]} Qd7 {[%clk
00:12:28]} {[%emt 00:00:36]} 14. Nxe6 {[%clk 00:11:38]} {[%emt 00:00:06]} Nxe6
{[%clk 00:12:30]} {[%emt 00:00:03]} 15. Bg3 {[%clk 00:11:05]} {[%emt 00:00:37]}
d5 {[%clk 00:12:24]} {[%emt 00:00:10]} 16. a3 {[%clk 00:10:36]} {[%emt
00:00:36]} Bd6 {[%clk 00:12:25]} {[%emt 00:00:03]} 17. Bh4 {[%clk 00:10:17]}
{[%emt 00:00:24]} Bf4 {[%clk 00:11:23]} {[%emt 00:01:06]} 18. Qd1 {[%clk
00:09:56]} {[%emt 00:00:26]} Bg5 {[%clk 00:11:18]} {[%emt 00:00:11]} 19. Bg3
{[%clk 00:09:18]} {[%emt 00:00:43]} Nf8 {[%clk 00:10:38]} {[%emt 00:00:45]} 20.
Qf3 {[%clk 00:08:41]} {[%emt 00:00:42]} Rxe1+ {[%clk 00:09:04]} {[%emt
00:01:39]} 21. Rxe1 {[%clk 00:08:44]} {[%emt 00:00:02]} Re8 {[%clk 00:09:01]}
{[%emt 00:00:08]} 22. Re5 {[%clk 00:07:58]} {[%emt 00:00:51]} Rxe5 {[%clk
00:07:42]} {[%emt 00:01:24]} 23. Bxe5 {[%clk 00:06:43]} {[%emt 00:01:20]} Ng6
{[%clk 00:06:21]} {[%emt 00:01:26]} 24. Bxg6 {[%clk 00:05:48]} {[%emt
00:01:00]} hxg6 {[%clk 00:06:19]} {[%emt 00:00:07]} 25. Nd1 {[%clk 00:05:04]}
{[%emt 00:00:49]} Qf5 {[%clk 00:05:58]} {[%emt 00:00:26]} 26. Qxf5 {[%clk
00:05:04]} {[%emt 00:00:05]} gxf5 {[%clk 00:06:00]} {[%emt 00:00:03]} 27. Ne3
{[%clk 00:04:23]} {[%emt 00:00:46]} Bxe3 {[%clk 00:05:50]} {[%emt 00:00:14]} 28.
fxe3 {[%clk 00:03:53]} {[%emt 00:00:36]} Ne4 {[%clk 00:05:50]} {[%emt
00:00:05]} 29. b3 {[%clk 00:03:15]} {[%emt 00:00:44]} g6 {[%clk 00:05:44]}
{[%emt 00:00:11]} 30. Kf1 {[%clk 00:03:14]} {[%emt 00:00:06]} Kf8 {[%clk
00:05:46]} {[%emt 00:00:03]} 31. Ke2 {[%clk 00:03:09]} {[%emt 00:00:09]} Ke7
{[%clk 00:05:49]} {[%emt 00:00:02]} 32. Kd3 {[%clk 00:02:52]} {[%emt 00:00:22]}
Nf2+ {[%clk 00:05:25]} {[%emt 00:00:29]} 33. Ke2 {[%clk 00:02:53]} {[%emt
00:00:04]} Ne4 {[%clk 00:05:28]} {[%emt 00:00:02]} 34. Kd3 {[%clk 00:02:54]}
{[%emt 00:00:04]} Nf2+ {[%clk 00:05:31]} {[%emt 00:00:02]} 35. Ke2 {[%clk
00:02:57]} {[%emt 00:00:02]} Ne4 {[%clk 00:05:34]} {[%emt 00:00:02]} 1/2-1/2

[Event "Rapid Tournament (RAP)"]
[Site "Biel, Switzerland"]
[Date "2026.07.12"]
[Round "1.44"]
[White "Huang, Hsuan-Chen"]
[Black "Sadeghi, Hassan Roger"]
[Result "0-1"]
[TimeControl "15 + 5"]
[WhiteTitle "-"]
[BlackTitle "-"]
[WhiteFideId "16303121"]
[BlackFideId "1304712"]
[WhiteElo "1648"]
[BlackElo "2028"]

1. d4 {[%clk 00:15:07]} {[%emt 00:00:02]} Nf6 {[%clk 00:15:09]} {[%emt
00:00:01]} 2. Nf3 {[%clk 00:15:09]} {[%emt 00:00:03]} c5 {[%clk 00:15:13]}
{[%emt 00:00:01]} 3. e3 {[%clk 00:15:12]} {[%emt 00:00:02]} e6 {[%clk
00:15:07]} {[%emt 00:00:11]} 4. Bd3 {[%clk 00:15:12]} {[%emt 00:00:05]} b6
{[%clk 00:15:11]} {[%emt 00:00:02]} 5. O-O {[%clk 00:15:12]} {[%emt 00:00:04]}
Bb7 {[%clk 00:15:15]} 6. Nbd2 {[%clk 00:14:56]} {[%emt 00:00:22]} Be7 {[%clk
00:15:15]} {[%emt 00:00:05]} 7. Qe2 {[%clk 00:14:12]} {[%emt 00:00:49]} Nc6
{[%clk 00:15:12]} {[%emt 00:00:07]} 8. c3 {[%clk 00:13:56]} {[%emt 00:00:21]}
Nd5 {[%clk 00:14:57]} {[%emt 00:00:20]} 9. Ne4 {[%clk 00:11:42]} {[%emt
00:02:19]} f5 {[%clk 00:14:33]} {[%emt 00:00:31]} 10. Ng3 {[%clk 00:11:44]}
{[%emt 00:00:02]} O-O {[%clk 00:14:36]} {[%emt 00:00:01]} 11. dxc5 {[%clk
00:10:33]} {[%emt 00:01:17]} bxc5 {[%clk 00:14:19]} {[%emt 00:00:22]} 12. e4
{[%clk 00:10:36]} {[%emt 00:00:02]} fxe4 {[%clk 00:14:19]} {[%emt 00:00:05]} 13.
Qxe4 {[%clk 00:08:37]} {[%emt 00:02:04]} g6 {[%clk 00:12:57]} {[%emt 00:01:27]}
14. Bh6 {[%clk 00:07:50]} {[%emt 00:00:51]} Rf7 {[%clk 00:13:02]} 15. h3 {[%clk
00:06:34]} {[%emt 00:01:22]} Nf6 {[%clk 00:09:26]} {[%emt 00:03:41]} 16. Qe2
{[%clk 00:06:30]} {[%emt 00:00:08]} Bf8 {[%clk 00:09:00]} {[%emt 00:00:32]} 17.
Bg5 {[%clk 00:05:31]} {[%emt 00:01:04]} Qc7 {[%clk 00:06:44]} {[%emt 00:02:22]}
18. Bxf6 {[%clk 00:04:48]} {[%emt 00:00:47]} Rxf6 {[%clk 00:06:45]} {[%emt
00:00:04]} 19. Ne4 {[%clk 00:04:52]} Rf4 {[%clk 00:06:02]} {[%emt 00:00:48]} 20.
g3 {[%clk 00:03:58]} {[%emt 00:00:58]} Rf7 {[%clk 00:05:10]} {[%emt 00:00:58]}
21. Nfg5 {[%clk 00:03:49]} {[%emt 00:00:14]} Rf5 {[%clk 00:05:07]} {[%emt
00:00:08]} 22. g4 {[%clk 00:03:23]} {[%emt 00:00:31]} Rf4 {[%clk 00:05:06]}
{[%emt 00:00:06]} 23. Ng3 {[%clk 00:02:59]} {[%emt 00:00:29]} Ne5 {[%clk
00:03:54]} {[%emt 00:01:17]} 24. Be4 {[%clk 00:02:45]} {[%emt 00:00:19]} Bg7
{[%clk 00:02:59]} {[%emt 00:01:00]} 25. Qe3 {[%clk 00:01:53]} {[%emt 00:00:57]}
Raf8 {[%clk 00:02:38]} {[%emt 00:00:26]} 26. f3 {[%clk 00:01:16]} {[%emt
00:00:42]} h6 {[%clk 00:02:30]} {[%emt 00:00:13]} 27. Bxb7 {[%clk 00:00:59]}
{[%emt 00:00:23]} Qxb7 {[%clk 00:02:27]} {[%emt 00:00:07]} 28. N5e4 {[%clk
00:01:03]} {[%emt 00:00:01]} Nxf3+ {[%clk 00:02:20]} {[%emt 00:00:13]} 29. Kg2
{[%clk 00:00:53]} {[%emt 00:00:15]} Qxb2+ {[%clk 00:02:18]} {[%emt 00:00:07]}
30. Nf2 {[%clk 00:00:42]} {[%emt 00:00:15]} Nh4+ {[%clk 00:02:01]} {[%emt
00:00:23]} 31. Kg1 {[%clk 00:00:46]} {[%emt 00:00:01]} Rf3 {[%clk 00:02:02]}
{[%emt 00:00:04]} 0-1